[Event "28th CRO-chT 1A-Men 2019"]
[Site "Mali Losinj"]
[Date "2019.10.02"]
[Round "5.3"]
[White "Biti, Ozren"]
[Black "Lalic, Bogdan"]
[Result "1/2-1/2"]
[ECO "C47"]
[WhiteElo "2366"]
[BlackElo "2419"]
[Annotator "NA"]
[PlyCount "29"]
[EventDate "2019.09.28"]
[EventType "team-tourn"]
[EventCountry "CRO"]
[SourceTitle "playchess.com"]
[Source "ChessBase"]
[SourceQuality "1"]
[TimeControl "40/5400+30:1800+30"]

1. e4 {[%emt 0:00:30]} e5 {[%emt 0:01:30]} 2. Nf3 {[%emt 0:00:00]} Nc6 {[%emt 0:00:00]} 3. Nc3 {[%emt 0:01:00]} Nf6 {[%emt 0:00:00]} 4. d4 {[%emt 0:00:30]} exd4 {[%emt 0:00:30]} 5. Nxd4 {[%emt 0:00:00]} Bb4 {[%emt 0:00:00]} 6. Nxc6 {[%emt 0:00:00]} bxc6 {[%emt 0:00:00]} 7. Bd3 {[%emt 0:00:30]} d5 {[%emt 0:00:30]} 8. exd5 {[%emt 0:00:30]} cxd5 {[%emt 0:00:00]} 9. O-O {[%emt 0:00:30]} O-O {[%emt 0:00:00]} 10. Bg5 {[%emt 0:00:30]} c6 {[%emt 0:00:30]} 11. Qf3 {[%emt 0:00:30]} h6 {[%emt 0:00:00]} 12. Bxf6 {[%emt 0:00:00]} Qxf6 {[%emt 0:00:00]} 13. Qxf6 {[%emt 0:00:00]} gxf6 {[%emt 0:00:30]} 14. Ne2 {[%emt 0:00:30]} Bd6 {[%emt 0:00:00]} 15. Ng3 {[%emt 0:02:30]} 1/2-1/2

[Event "28th CRO-chT 1A-Men 2019"]
[Site "Mali Losinj"]
[Date "2019.10.02"]
[Round "5.4"]
[White "Loncar, Robert"]
[Black "Ascic, Pero"]
[Result "0-1"]
[ECO "D37"]
[WhiteElo "2406"]
[BlackElo "2318"]
[Annotator "NA"]
[PlyCount "140"]
[EventDate "2019.09.28"]
[EventType "team-tourn"]
[EventCountry "CRO"]
[SourceTitle "playchess.com"]
[Source "ChessBase"]
[SourceQuality "1"]
[TimeControl "40/5400+30:1800+30"]

1. d4 {[%emt 0:15:30]} d5 {[%emt 0:00:30]} 2. c4 {[%emt 0:00:00]} e6 {[%emt 0:01:30]} 3. Nf3 {[%emt 0:00:00]} Be7 {[%emt 0:01:30]} 4. Nc3 {[%emt 0:02:30]} Nf6 {[%emt 0:01:30]} 5. Bf4 {[%emt 0:00:30]} a6 {[%emt 0:15:30]} 6. c5 {[%emt 0:07:30]} O-O {[%emt 0:03:30]} 7. e3 {[%emt 0:00:30]} b6 {[%emt 0:12:30]} 8. cxb6 {[%emt 0:05:30]} cxb6 {[%emt 0:00:30]} 9. Bd3 {[%emt 0:01:30]} Bb7 {[%emt 0:11:30]} 10. O-O {[%emt 0:15:30]} Nc6 {[%emt 0:08:30]} 11. Rc1 {[%emt 0:11:30]} b5 {[%emt 0:18:30]} 12. h3 {[%emt 0:11:30]} Rc8 {[%emt 0:03:41]} 13. Bb1 {[%emt 0:02:30]} Re8 {[%emt 0:04:25]} 14. Qe2 {[%emt 0:03:37]} Qb6 {[%emt 0:02:21]} 15. Rfd1 {[%emt 0:06:28]} Red8 {[%emt 0:02:38]} 16. Bg5 {[%emt 0:02:14]} h6 {[%emt 0:00:21]} 17. Bh4 {[%emt 0:00:29]} Nd7 {[%emt 0:02:12]} 18. Bg3 {[%emt 0:03:32]} Nf6 {[%emt 0:00:17]} 19. a3 {[%emt 0:01:35]} Na5 {[%emt 0:00:48]} 20. Bh4 {[%emt 0:01:02]} Nb3 {[%emt 0:01:36]} 21. Rc2 {[%emt 0:00:13]} Na1 {[%emt 0:00:20]} 22. Rcd2 {[%emt 0:00:54]} Nb3 {[%emt 0:00:13]} 23. Rd3 {[%emt 0:00:06]} Na5 {[%emt 0:02:57]} 24. Ne5 {[%emt 0:00:16]} Qd6 {[%emt 0:01:09]} 25. Bg3 {[%emt 0:03:50]} Qb6 {[%emt 0:00:11]} 26. Bh4 {[%emt 0:00:59]} Qd6 {[%emt 0:00:07]} 27. Bxf6 {[%emt 0:00:13]} Bxf6 {[%emt 0:00:11]} 28. f4 {[%emt 0:00:20]} Nc4 {[%emt 0:01:53]} 29. Rf1 {[%emt 0:01:49]} Qe7 {[%emt 0:00:09]} 30. g4 {[%emt 0:01:33]} Nd6 {[%emt 0:00:11]} 31. Rd2 {[%emt 0:00:25]} Rc7 {[%emt 0:02:08]} 32. Qf3 {[%emt 0:00:40]} a5 {[%emt 0:00:11]} 33. Rg2 {[%emt 0:00:12]} b4 {[%emt 0:00:50]} 34. axb4 {[%emt 0:00:02]} axb4 {[%emt 0:00:09]} 35. Na4 {[%emt 0:00:04]} Ne4 {[%emt 0:00:17]} 36. Qe2 {[%emt 0:00:45]} Ra8 {[%emt 0:00:21]} 37. Bxe4 {[%emt 0:00:38]} dxe4 {[%emt 0:00:37]} 38. Nc5 {[%emt 0:00:08]} Rxc5 {[%emt 0:00:31]} 39. dxc5 {[%emt 0:00:07]} Bxe5 {[%emt 0:00:01]} 40. fxe5 {[%emt 0:00:49]} Ba6 {[%emt 0:00:00]} 41. Ra1 {[%emt 0:09:00]} Bxe2 {[%emt 0:01:15]} 42. Rxa8+ {[%emt 0:00:00]} Kh7 {[%emt 0:00:00]} 43. Rxe2 {[%emt 0:00:00]} Qxc5 {[%emt 0:00:00]} 44. Kg2 {[%emt 0:02:30]} Qxe5 {[%emt 0:00:30]} 45. Ra7 {[%emt 0:03:32]} Kg6 {[%emt 0:04:30]} 46. Rf2 {[%emt 0:01:47]} f6 {[%emt 0:00:30]} 47. Rd7 {[%emt 0:07:53]} h5 {[%emt 0:07:30]} 48. gxh5+ {[%emt 0:01:41]} Qxh5 {[%emt 0:00:30]} 49. Kh2 {[%emt 0:00:32]} Qe5+ {[%emt 0:00:30]} 50. Kh1 {[%emt 0:00:09]} Kh6 {[%emt 0:04:13]} 51. Rg2 {[%emt 0:02:18]} f5 {[%emt 0:00:47]} 52. Rb7 {[%emt 0:00:36]} g5 {[%emt 0:05:43]} 53. Rxb4 {[%emt 0:00:02]} Qc5 {[%emt 0:00:18]} 54. Rb8 {[%emt 0:01:17]} Qc1+ {[%emt 0:00:30]} 55. Rg1 {[%emt 0:00:01]} Qxe3 {[%emt 0:00:15]} 56. Rg2 {[%emt 0:01:08]} Kg6 {[%emt 0:01:10]} 57. b4 {[%emt 0:01:27]} Qxh3+ {[%emt 0:00:07]} 58. Kg1 {[%emt 0:00:06]} Qe3+ {[%emt 0:00:17]} 59. Kh1 {[%emt 0:00:26]} g4 {[%emt 0:00:27]} 60. Rg8+ {[%emt 0:02:44]} Kf7 {[%emt 0:00:17]} 61. Rh8 {[%emt 0:00:34]} Qe1+ {[%emt 0:00:29]} 62. Kh2 {[%emt 0:00:22]} Qxb4 {[%emt 0:00:13]} 63. Rh7+ {[%emt 0:01:20]} Kf6 {[%emt 0:00:18]} 64. Rc2 {[%emt 0:01:17]} e3 {[%emt 0:00:16]} 65. Kg3 {[%emt 0:00:17]} Qd6+ {[%emt 0:01:03]} 66. Kh4 {[%emt 0:00:03]} Qd3 {[%emt 0:00:39]} 67. Rc5 {[%emt 0:00:15]} Qd6 {[%emt 0:01:27]} 68. Rc2 {[%emt 0:03:36]} Qd1 {[%emt 0:00:14]} 69. Rcc7 {[%emt 0:01:24]} e2 {[%emt 0:01:30]} 70. Rhf7+ {[%emt 0:00:19]} Ke5 {[%emt 0:00:09]} 0-1

[Event "28th CRO-chT 1A-Men 2019"]
[Site "Mali Losinj"]
[Date "2019.10.02"]
[Round "5.5"]
[White "Filipovic, Marko"]
[Black "Sale, Srdjan"]
[Result "0-1"]
[ECO "D02"]
[WhiteElo "2349"]
[BlackElo "2412"]
[Annotator "NA RC"]
[PlyCount "88"]
[EventDate "2019.09.28"]
[EventType "team-tourn"]
[EventCountry "CRO"]
[SourceTitle "playchess.com"]
[Source "ChessBase"]
[SourceQuality "1"]
[TimeControl "40/5400+30:1800+30"]

1. d4 {[%emt 0:00:30]} Nf6 {[%emt 0:03:30]} 2. Nf3 {[%emt 0:00:00]} c5 {[%emt 0:00:30]} 3. g3 {[%emt 0:00:00]} cxd4 {[%emt 0:01:30]} 4. Nxd4 {[%emt 0:00:30]} e5 {[%emt 0:03:30]} 5. Nf3 {[%emt 0:07:30]} Nc6 {[%emt 0:01:30]} 6. Bg2 {[%emt 0:02:30]} d5 {[%emt 0:00:30]} 7. O-O {[%emt 0:02:30]} Be7 {[%emt 0:04:30]} 8. c4 {[%emt 0:01:30]} d4 {[%emt 0:01:30]} 9. b4 {[%emt 0:07:30]} Qc7 {[%emt 0:01:30]} 10. Qa4 {[%emt 0:13:30]} Nd7 {[%emt 0:09:30]} 11. c5 {[%emt 0:12:30]} a5 {[%emt 0:07:30]} 12. a3 {[%emt 0:04:30]} Qb8 {[%emt 0:03:30]} 13. b5 {[%emt 0:02:30]} Nxc5 {[%emt 0:00:30]} 14. Qc2 {[%emt 0:03:30]} Nd8 {[%emt 0:01:30]} 15. Nbd2 {[%emt 0:05:30]} Be6 {[%emt 0:02:30]} 16. Nc4 {[%emt 0:05:30]} Nd7 {[%emt 0:05:30]} 17. Ng5 {[%emt 0:04:30]} Bxg5 {[%emt 0:09:30]} 18. Bxg5 {[%emt 0:00:30]} Qc7 {[%emt 0:16:30]} 19. Rac1 {[%emt 0:04:30]} O-O {[%emt 0:03:30]} 20. Be7 {[%emt 0:03:02]} Re8 {[%emt 0:01:30]} 21. Bd6 {[%emt 0:00:14]} Qxc4 {[%emt 0:00:30]} 22. Qxc4 {[%emt 0:00:07]} Bxc4 {[%emt 0:00:30]} 23. Rxc4 {[%emt 0:00:02]} Nb6 {[%emt 0:00:38]} 24. Rcc1 {[%emt 0:07:35]} Na4 {[%emt 0:01:39]} 25. Rfe1 {[%emt 0:06:29]} Nc3 {[%emt 0:06:01]} 26. b6 {[%emt 0:00:49]} e4 {[%emt 0:01:40]} 27. Bh3 {[%emt 0:03:38]} Ne6 {[%emt 0:01:18]} 28. Bc7 {[%emt 0:01:19]} g6 {[%emt 0:05:12]} 29. e3 {[%emt 0:00:35]} Ng5 {[%emt 0:00:11]} 30. Bg2 {[%emt 0:00:56]} Nf3+ {[%emt 0:00:16]} 31. Bxf3 {[%emt 0:00:23]} exf3 {[%emt 0:00:04]} 32. Kf1 {[%emt 0:00:31]} Ne2 {[%emt 0:00:37]} 33. Rcd1 {[%emt 0:00:22]} dxe3 {[%emt 0:00:14]} 34. Rd3 {[%emt 0:00:14]} Re4 {[%emt 0:03:49]} 35. fxe3 {[%emt 0:00:36]} g5 {[%emt 0:00:24]} 36. Kf2 {[%emt 0:00:47]} g4 {[%emt 0:00:06]} 37. Red1 {[%emt 0:00:27]} f6 {[%emt 0:02:07]} 38. Rd7 {[%emt 0:00:49]} Rae8 {[%emt 0:00:35]} 39. R7d3 {[%emt 0:00:29]} Kf7 {[%emt 0:00:00]} 40. h3 {[%emt 0:00:00]} h5 {[%emt 0:00:00]} 41. Bd8 {[%emt 0:12:17]} Kg6 {[%emt 0:07:39]} 42. Rd6 {[%emt 0:09:49]} R8e6 {[%emt 0:07:33]} 43. hxg4 {[%emt 0:01:50]} hxg4 {[%emt 0:00:27]} 44. R1d3 {[%emt 0:01:23]} Rxe3 {[%emt 0:06:25]} 0-1

[Event "28th CRO-chT 1A-Men 2019"]
[Site "Mali Losinj"]
[Date "2019.10.02"]
[Round "5.7"]
[White "Grachev, Boris"]
[Black "Georgiev, Kiril"]
[Result "1/2-1/2"]
[ECO "E07"]
[WhiteElo "2621"]
[BlackElo "2577"]
[Annotator "ChessBase"]
[PlyCount "45"]
[EventDate "2019.09.28"]
[EventType "team-tourn"]
[EventCountry "CRO"]
[SourceTitle "playchess.com"]
[Source "ChessBase"]
[SourceQuality "1"]
[TimeControl "40/5400+30:1800+30"]

1. Nf3 {[%emt 0:00:30]} Nf6 {[%emt 0:00:30]} 2. c4 {[%emt 0:00:00]} e6 {[%emt 0:00:30]} 3. Nc3 {[%emt 0:00:00]} d5 {[%emt 0:00:30]} 4. d4 {[%emt 0:00:30]} Be7 {[%emt 0:02:30]} 5. g3 {[%emt 0:01:30]} O-O {[%emt 0:00:30]} 6. Bg2 {[%emt 0:00:30]} c6 {[%emt 0:04:30]} 7. O-O {[%emt 0:04:30]} Nbd7 {[%emt 0:03:30]} 8. b3 {[%emt 0:06:30]} b6 {[%emt 0:00:30]} 9. Bb2 {[%emt 0:02:30]} Bb7 {[%emt 0:05:30]} 10. Qd3 {[%emt 0:10:30]} c5 {[%emt 0:05:30]} 11. cxd5 {[%emt 0:01:30]} Nxd5 {[%emt 0:01:30]} 12. Nxd5 {[%emt 0:00:30]} Bxd5 {[%emt 0:00:30]} 13. e4 {[%emt 0:13:30]} Bb7 {[%emt 0:00:30]} 14. Rfd1 {[%emt 0:03:30]} cxd4 {[%emt 0:06:30]} 15. Nxd4 {[%emt 0:04:30]} Nf6 {[%emt 0:01:30]} 16. Qe2 {[%emt 0:02:30]} Qe8 {[%emt 0:03:30]} 17. Nb5 {[%emt 0:05:30]} Ba6 {[%emt 0:03:30]} 18. a4 {[%emt 0:00:30]} Rd8 {[%emt 0:00:00]} 19. h3 {[%emt 0:04:30]} Rxd1+ {[%emt 0:04:00]} 20. Rxd1 {[%emt 0:00:30]} Qc8 {[%emt 0:00:30]} 21. Rc1 {[%emt 0:08:30]} Qd7 {[%emt 0:01:30]} 22. Rd1 {[%emt 0:00:30]} Qc8 {[%emt 0:00:30]} 23. Rc1 {[%emt 0:11:21]} 1/2-1/2

[Event "28th CRO-chT 1A-Men 2019"]
[Site "Mali Losinj"]
[Date "2019.10.02"]
[Round "5.10"]
[White "Zovko, Mario"]
[Black "Tica, Sven"]
[Result "1-0"]
[ECO "B12"]
[WhiteElo "2324"]
[BlackElo "2418"]
[Annotator "NA"]
[PlyCount "47"]
[EventDate "2019.09.28"]
[EventType "team-tourn"]
[EventCountry "CRO"]
[SourceTitle "playchess.com"]
[Source "ChessBase"]
[SourceQuality "1"]
[TimeControl "40/5400+30:1800+30"]

1. e4 {[%emt 0:05:30]} c6 {[%emt 0:00:30]} 2. d4 {[%emt 0:00:30]} d5 {[%emt 0:00:00]} 3. e5 {[%emt 0:00:30]} Bf5 {[%emt 0:00:00]} 4. Nd2 {[%emt 0:00:00]} e6 {[%emt 0:00:30]} 5. Nb3 {[%emt 0:00:00]} Nd7 {[%emt 0:00:30]} 6. Nf3 {[%emt 0:01:30]} h6 {[%emt 0:00:30]} 7. Be2 {[%emt 0:02:30]} Ne7 {[%emt 0:00:30]} 8. O-O {[%emt 0:00:00]} Bh7 {[%emt 0:04:30]} 9. a4 {[%emt 0:05:00]} Nf5 {[%emt 0:11:30]} 10. c3 {[%emt 0:08:30]} g5 {[%emt 0:16:30]} 11. a5 {[%emt 0:04:30]} Qc7 {[%emt 0:09:30]} 12. Bd2 {[%emt 0:04:30]} Bg7 {[%emt 0:06:30]} 13. Ne1 {[%emt 0:03:30]} O-O-O {[%emt 0:04:30]} 14. Nd3 {[%emt 0:08:30]} f6 {[%emt 0:02:30]} 15. Nbc5 {[%emt 0:02:30]} Nxc5 {[%emt 0:02:30]} 16. Nxc5 {[%emt 0:01:30]} Rde8 {[%emt 0:00:30]} 17. exf6 {[%emt 0:03:30]} Bxf6 {[%emt 0:00:30]} 18. Bd3 {[%emt 0:05:30]} e5 {[%emt 0:06:30]} 19. Bxf5+ {[%emt 0:04:30]} Bxf5 {[%emt 0:00:00]} 20. Qf3 {[%emt 0:00:30]} Bc2 {[%emt 0:11:00]} 21. Rfc1 {[%emt 0:14:30]} Qh7 {[%emt 0:06:31]} 22. Qxf6 {[%emt 0:00:30]} Rhf8 {[%emt 0:00:06]} 23. Qd6 {[%emt 0:00:30]} Qf5 {[%emt 0:00:22]} 24. a6 {[%emt 0:01:30]} 1-0

[Event "28th CRO-chT 1A-Men 2019"]
[Site "Mali Losinj"]
[Date "2019.10.02"]
[Round "5.13"]
[White "Ponkratov, Pavel"]
[Black "Fedorchuk, Sergey A."]
[Result "1/2-1/2"]
[ECO "E39"]
[WhiteElo "2621"]
[BlackElo "2619"]
[Annotator "ChessBase"]
[PlyCount "33"]
[EventDate "2019.09.28"]
[EventType "team-tourn"]
[EventCountry "CRO"]
[SourceTitle "playchess.com"]
[Source "ChessBase"]
[SourceQuality "1"]
[TimeControl "40/5400+30:1800+30"]

1. d4 {[%emt 0:00:30]} Nf6 {[%emt 0:00:30]} 2. c4 {[%emt 0:00:00]} e6 {[%emt 0:00:00]} 3. Nc3 {[%emt 0:00:00]} Bb4 {[%emt 0:00:00]} 4. Qc2 {[%emt 0:00:00]} c5 {[%emt 0:02:30]} 5. dxc5 {[%emt 0:00:00]} O-O {[%emt 0:00:30]} 6. Nf3 {[%emt 0:00:30]} Na6 {[%emt 0:00:30]} 7. g3 {[%emt 0:02:30]} Nxc5 {[%emt 0:00:30]} 8. Bd2 {[%emt 0:00:30]} Bxc3 {[%emt 0:16:30]} 9. Bxc3 {[%emt 0:00:30]} Nce4 {[%emt 0:00:00]} 10. Bg2 {[%emt 0:08:30]} Nxc3 {[%emt 0:15:00]} 11. Qxc3 {[%emt 0:00:30]} b6 {[%emt 0:00:30]} 12. Nd4 {[%emt 0:21:30]} Rb8 {[%emt 0:02:30]} 13. O-O {[%emt 0:00:30]} Bb7 {[%emt 0:01:30]} 14. Qa3 {[%emt 0:00:30]} Bxg2 {[%emt 0:04:30]} 15. Kxg2 {[%emt 0:00:30]} Qc7 {[%emt 0:00:30]} 16. Rac1 {[%emt 0:00:30]} Qc5 {[%emt 0:04:30]} 17. Qd3 {[%emt 0:02:30]} 1/2-1/2

[Event "28th CRO-chT 1A-Men 2019"]
[Site "Mali Losinj"]
[Date "2019.10.02"]
[Round "5.15"]
[White "Cvitan, Ognjen"]
[Black "Plat, Vojtech"]
[Result "1/2-1/2"]
[ECO "C41"]
[WhiteElo "2490"]
[BlackElo "2573"]
[Annotator "ChessBase"]
[PlyCount "28"]
[EventDate "2019.09.28"]
[EventType "team-tourn"]
[EventCountry "CRO"]
[SourceTitle "playchess.com"]
[Source "ChessBase"]
[SourceQuality "1"]
[TimeControl "40/5400+30:1800+30"]

1. d4 {[%emt 0:00:30]} d6 {[%emt 0:00:30]} 2. e4 {[%emt 0:00:30]} Nf6 {[%emt 0:00:30]} 3. Nc3 {[%emt 0:00:00]} e5 {[%emt 0:00:00]} 4. Nf3 {[%emt 0:00:00]} Nbd7 {[%emt 0:00:00]} 5. Bc4 {[%emt 0:00:30]} Be7 {[%emt 0:00:00]} 6. O-O {[%emt 0:00:30]} O-O {[%emt 0:00:00]} 7. Re1 {[%emt 0:00:30]} c6 {[%emt 0:00:00]} 8. a4 {[%emt 0:00:30]} a5 {[%emt 0:00:00]} 9. h3 {[%emt 0:00:30]} Nb6 {[%emt 0:00:30]} 10. Bb3 {[%emt 0:00:30]} Nfd7 {[%emt 0:00:00]} 11. Be3 {[%emt 0:01:30]} exd4 {[%emt 0:00:00]} 12. Nxd4 {[%emt 0:02:30]} Nc5 {[%emt 0:00:00]} 13. Qf3 {[%emt 0:01:30]} Nxb3 {[%emt 0:04:00]} 14. cxb3 {[%emt 0:01:30]} Re8 {[%emt 0:07:30]} 1/2-1/2

[Event "28th CRO-chT 1A-Men 2019"]
[Site "Mali Losinj"]
[Date "2019.10.02"]
[Round "5.16"]
[White "Blazeka, Matej"]
[Black "Kurajica, Bojan"]
[Result "1/2-1/2"]
[ECO "B44"]
[WhiteElo "2385"]
[BlackElo "2494"]
[Annotator "ChessBase"]
[PlyCount "29"]
[EventDate "2019.09.28"]
[EventType "team-tourn"]
[EventCountry "CRO"]
[SourceTitle "playchess.com"]
[Source "ChessBase"]
[SourceQuality "1"]
[TimeControl "40/5400+30:1800+30"]

1. e4 {[%emt 0:00:30]} c5 {[%emt 0:00:30]} 2. Nf3 {[%emt 0:00:00]} e6 {[%emt 0:00:00]} 3. c4 {[%emt 0:00:00]} Nf6 {[%emt 0:01:00]} 4. Nc3 {[%emt 0:00:30]} Nc6 {[%emt 0:00:30]} 5. d4 {[%emt 0:00:00]} cxd4 {[%emt 0:00:00]} 6. Nxd4 {[%emt 0:00:00]} Bb4 {[%emt 0:00:00]} 7. Nxc6 {[%emt 0:00:30]} dxc6 {[%emt 0:04:30]} 8. Qxd8+ {[%emt 0:00:30]} Kxd8 {[%emt 0:00:30]} 9. e5 {[%emt 0:00:00]} Ne4 {[%emt 0:00:30]} 10. a3 {[%emt 0:04:00]} Bxc3+ {[%emt 0:00:30]} 11. bxc3 {[%emt 0:00:00]} b6 {[%emt 0:00:00]} 12. Be3 {[%emt 0:05:00]} Ba6 {[%emt 0:04:00]} 13. f3 {[%emt 0:14:30]} Nc5 {[%emt 0:00:00]} 14. Bxc5 {[%emt 0:00:30]} bxc5 {[%emt 0:00:00]} 15. O-O-O+ {[%emt 0:00:30]} 1/2-1/2

[Event "28th CRO-chT 1A-Men 2019"]
[Site "Mali Losinj"]
[Date "2019.10.02"]
[Round "5.17"]
[White "Rogic, Davor"]
[Black "Rogulj, Branko"]
[Result "1/2-1/2"]
[ECO "C62"]
[WhiteElo "2492"]
[BlackElo "2394"]
[Annotator "ChessBase"]
[PlyCount "54"]
[EventDate "2019.09.28"]
[EventType "team-tourn"]
[EventCountry "CRO"]
[SourceTitle "playchess.com"]
[Source "ChessBase"]
[SourceQuality "1"]
[TimeControl "40/5400+30:1800+30"]

1. e4 {[%emt 0:02:30]} e5 {[%emt 0:00:30]} 2. Nf3 {[%emt 0:00:30]} Nc6 {[%emt 0:00:00]} 3. Bb5 {[%emt 0:00:30]} Nf6 {[%emt 0:00:00]} 4. d4 {[%emt 0:03:30]} exd4 {[%emt 0:03:30]} 5. O-O {[%emt 0:00:30]} d6 {[%emt 0:02:30]} 6. Nxd4 {[%emt 0:07:30]} Bd7 {[%emt 0:00:30]} 7. Bxc6 {[%emt 0:00:30]} bxc6 {[%emt 0:00:00]} 8. Re1 {[%emt 0:01:30]} Be7 {[%emt 0:01:00]} 9. c4 {[%emt 0:03:30]} O-O {[%emt 0:01:30]} 10. Nc3 {[%emt 0:00:30]} Re8 {[%emt 0:04:30]} 11. h3 {[%emt 0:03:30]} Bf8 {[%emt 0:01:30]} 12. Bf4 {[%emt 0:02:30]} g6 {[%emt 0:06:30]} 13. Qd3 {[%emt 0:04:30]} Bg7 {[%emt 0:15:30]} 14. Rad1 {[%emt 0:05:30]} c5 {[%emt 0:07:30]} 15. Nf3 {[%emt 0:03:30]} Qb8 {[%emt 0:07:30]} 16. b3 {[%emt 0:03:30]} Nh5 {[%emt 0:07:30]} 17. Bh2 {[%emt 0:03:30]} Bc6 {[%emt 0:01:30]} 18. Nd5 {[%emt 0:15:30]} Nf6 {[%emt 0:11:30]} 19. Nxf6+ {[%emt 0:02:30]} Bxf6 {[%emt 0:00:30]} 20. e5 {[%emt 0:00:30]} dxe5 {[%emt 0:06:30]} 21. Nxe5 {[%emt 0:09:30]} Qb7 {[%emt 0:00:30]} 22. Nxc6 {[%emt 0:04:30]} Qxc6 {[%emt 0:00:30]} 23. Bf4 {[%emt 0:01:30]} Bd4 {[%emt 0:00:37]} 24. Qg3 {[%emt 0:02:32]} Rxe1+ {[%emt 0:03:34]} 25. Rxe1 {[%emt 0:00:02]} Re8 {[%emt 0:00:08]} 26. Rxe8+ {[%emt 0:05:20]} Qxe8 {[%emt 0:00:06]} 27. Be3 {[%emt 0:00:08]} Bxe3 {[%emt 0:03:15]} 1/2-1/2

[Event "28th CRO-chT 1A-Men 2019"]
[Site "Mali Losinj"]
[Date "2019.10.02"]
[Round "5.23"]
[White "Bobanac, Miro"]
[Black "Mrkonjic, Nenad"]
[Result "1-0"]
[ECO "A13"]
[WhiteElo "2257"]
[BlackElo "2347"]
[Annotator "NA"]
[PlyCount "97"]
[EventDate "2019.09.28"]
[EventType "team-tourn"]
[EventCountry "CRO"]
[SourceTitle "playchess.com"]
[Source "ChessBase"]
[SourceQuality "1"]
[TimeControl "40/5400+30:1800+30"]

1. Nf3 {[%emt 0:00:30]} d5 {[%emt 0:01:30]} 2. e3 {[%emt 0:01:30]} Nf6 {[%emt 0:00:30]} 3. c4 {[%emt 0:00:30]} e6 {[%emt 0:02:30]} 4. b3 {[%emt 0:03:30]} Be7 {[%emt 0:00:30]} 5. Bb2 {[%emt 0:00:30]} O-O {[%emt 0:00:30]} 6. Be2 {[%emt 0:03:30]} c5 {[%emt 0:01:30]} 7. O-O {[%emt 0:01:30]} Nc6 {[%emt 0:01:30]} 8. d4 {[%emt 0:02:30]} cxd4 {[%emt 0:00:30]} 9. Nxd4 {[%emt 0:00:30]} Nxd4 {[%emt 0:01:30]} 10. exd4 {[%emt 0:05:30]} b6 {[%emt 0:01:30]} 11. Bf3 {[%emt 0:02:30]} Bb7 {[%emt 0:03:30]} 12. Nd2 {[%emt 0:03:30]} Rc8 {[%emt 0:00:30]} 13. a3 {[%emt 0:06:30]} Qd7 {[%emt 0:00:30]} 14. Qe2 {[%emt 0:00:30]} Rc7 {[%emt 0:14:30]} 15. Rfc1 {[%emt 0:04:30]} Rfc8 {[%emt 0:00:00]} 16. Rc2 {[%emt 0:05:30]} Bd6 {[%emt 0:03:00]} 17. Rac1 {[%emt 0:05:30]} a5 {[%emt 0:02:30]} 18. Qe3 {[%emt 0:07:30]} Qe7 {[%emt 0:01:30]} 19. a4 {[%emt 0:01:30]} Bb4 {[%emt 0:02:30]} 20. Bc3 {[%emt 0:00:30]} Ba3 {[%emt 0:07:30]} 21. Re1 {[%emt 0:03:30]} Qd7 {[%emt 0:00:00]} 22. Ra2 {[%emt 0:01:30]} Bd6 {[%emt 0:05:00]} 23. g3 {[%emt 0:03:30]} Ba6 {[%emt 0:04:30]} 24. Be2 {[%emt 0:00:00]} dxc4 {[%emt 0:09:30]} 25. bxc4 {[%emt 0:02:00]} Bb7 {[%emt 0:01:30]} 26. Bf3 {[%emt 0:05:30]} Nd5 {[%emt 0:06:30]} 27. Bxd5 {[%emt 0:01:30]} exd5 {[%emt 0:02:30]} 28. c5 {[%emt 0:00:30]} Bf8 {[%emt 0:06:30]} 29. Nf3 {[%emt 0:02:30]} bxc5 {[%emt 0:00:45]} 30. Bxa5 {[%emt 0:03:30]} cxd4 {[%emt 0:00:15]} 31. Qxd4 {[%emt 0:02:30]} Rc4 {[%emt 0:10:52]} 32. Ne5 {[%emt 0:01:30]} Qh3 {[%emt 0:01:58]} 33. Qa7 {[%emt 0:01:47]} R4c7 {[%emt 0:05:22]} 34. Bxc7 {[%emt 0:08:30]} Rxc7 {[%emt 0:00:38]} 35. Rb2 {[%emt 0:00:52]} Qc8 {[%emt 0:00:31]} 36. Reb1 {[%emt 0:00:43]} Ba6 {[%emt 0:00:30]} 37. Qe3 {[%emt 0:00:46]} Re7 {[%emt 0:00:30]} 38. Rb8 {[%emt 0:02:51]} Qc7 {[%emt 0:00:02]} 39. Qb6 {[%emt 0:00:41]} Qxe5 {[%emt 0:02:55]} 40. Qxa6 {[%emt 0:00:00]} Re8 {[%emt 0:00:00]} 41. Rxe8 {[%emt 0:03:20]} Qxe8 {[%emt 0:02:12]} 42. Qb5 {[%emt 0:00:00]} Qe4 {[%emt 0:00:30]} 43. Rd1 {[%emt 0:02:00]} g6 {[%emt 0:02:30]} 44. a5 {[%emt 0:00:30]} d4 {[%emt 0:08:39]} 45. a6 {[%emt 0:02:30]} Qc2 {[%emt 0:00:35]} 46. Qb1 {[%emt 0:01:30]} Qc7 {[%emt 0:02:40]} 47. Qb7 {[%emt 0:03:30]} Qc2 {[%emt 0:01:39]} 48. Rxd4 {[%emt 0:03:30]} Bc5 {[%emt 0:00:36]} 49. a7 {[%emt 0:00:30]} 1-0